Cogmind - Beta 11 X5 @@@ ROGUE MODE // 2021.07.03 @ 23:32:25 Player: Exp. Geonium Core Result: Self-destructed Performance ------------- Evolutions (1) 500 Regions Visited (4) 800 Robots Destroyed (0) 0 Value Destroyed (0) 0 Prototype IDs (23) 460 Alien Tech Used (0) 0 Bonus (440) 440 TOTAL SCORE: 2200 Bonus ------- Pacifist 200 Aligned with FarCom 300 Friendly Fire -60 Cogmind --------- Core Integrity 200/400 Matter 261/300 Energy 93/100 System Corruption 2% Temperature Cool (0) Movement Treading (160) Location -9/Exiles Parts ------- > --- POWER (1) -------- (None) > --- PROPULSION (2) --- Light Treads Aluminum Leg > --- UTILITY (2) ------ Small Storage Unit > --- WEAPON (4) ------- (None) > --- INVENTORY (8) ---- Reinforced Deuterium Engine Fission Core Modified TNC Peak State ------------ > --- POWER ------------ Ion Engine > --- PROPULSION ------- Light Treads Light Treads > --- UTILITY ---------- Small Storage Unit Medium Armor Plating > --- WEAPON ----------- Small Laser Small Laser Assault Rifle > --- INVENTORY -------- Reinforced Deuterium Engine Fission Core Fission Core Light Treads Lightpack 2.0 Modified TNC [Rating: 14] Favorites ----------- Power Ion Engine Engine Ion Engine Propulsion Aluminum Leg Treads Light Treads Leg Aluminum Leg Utility Small Storage Unit Device Heat Sink Storage Small Storage Unit Protection Medium Armor Plating Weapon Small Laser Energy Gun Small Laser Ballistic Gun Assault Rifle Build | -11 -10 -9 -9 -9 ------- Run | Scr Mat Mat Min Exi Slots Evolved 2 | . . 2 . . Power . | . . . . . Propulsion . | . . . . . Utility . | . . . . . Weapon 2 | . . 2 . . Parts Attached 8 | . . . 1 7 Power 1 | . . . . 1 Engine 1 | . . . . 1 Core . | . . . . . Reactor . | . . . . . Propulsion 4 | . . . . 4 Treads 3 | . . . . 3 Leg 1 | . . . . 1 Wheel . | . . . . . Hover . | . . . . . Flight . | . . . . . Utility 2 | . . . 1 1 Device 1 | . . . 1 . Storage . | . . . . . Processor . | . . . . . Hackware . | . . . . . Protection 1 | . . . . 1 Artifact . | . . . . . Weapon 1 | . . . . 1 Energy Gun . | . . . . . Energy Cannon . | . . . . . Ballistic Gun 1 | . . . . 1 Ballistic Cannon . | . . . . . Launcher . | . . . . . Special Weapon . | . . . . . Impact Weapon . | . . . . . Slashing Weapon . | . . . . . Piercing Weapon . | . . . . . Special Melee Weapon . | . . . . . Unidentified Prototypes . | . . . . . Corrupted Parts 1 | . . . . 1 System Corruption 2 | . . . . 2 Parts Lost 8 | . . 1 . 7 Power 2 | . . 1 . 1 Propulsion 2 | . . . . 2 Utility 1 | . . . . 1 Weapon 3 | . . . . 3 Highest Loss Streak 7 | . . 1 . 7 Average Slot Usage (%) 74 | . 85 65 60 82 Engine 8 | . 14 10 . 10 Treads 8 | . . . . 16 Leg 14 | . 28 22 22 5 Device 2 | . . . 5 2 Storage 11 | . 14 11 11 11 Protection 3 | . . . . 7 Energy Gun 22 | . 28 22 22 21 Ballistic Gun 3 | . . . . 7 Naked Turns . | . . . . . Heaviest Build 21 | 10 10 10 8 21 Greatest Support 40 | 20 20 20 20 40 Greatest Overweight (x) . | . . . . . Average Overweight (x) . | . . . . . Largest Inventory Capacity 8 | . 8 8 8 8 Average Capacity 8 | . 8 8 8 8 Most Carried 8 | . 6 7 8 8 Average Carried 6 | . 6 6 7 5 Final Capacity 8 | 8 8 8 8 8 Final Carried 8 | 6 6 7 8 3 Class Distribution -------------------- 66% | Mutant 33% | Tank Dominant Class ---------------- Mutant | -10/Materials Mutant | -9/Materials Mutant | -9/Mines Tank | -9/Exiles Resources | -11 -10 -9 -9 -9 ----------- Run | Scr Mat Mat Min Exi Matter Collected 233 | 200 . . 10 23 Remotely . | . . . . . Salvage Created 50 | . . . . 50 Parts . | . . . . . Haulers Intercepted . | . . . . . Recyclers Shooed . | . . . . . Parts Field Recycled . | . . . . . Retrieved Matter . | . . . . . Parts Self-Destructed . | . . . . . Prevented . | . . . . . Kills | -11 -10 -9 -9 -9 ------- Run | Scr Mat Mat Min Exi Combat Hostiles Destroyed 1 | . . . . 1 Guns 1 | . . . . 1 Classes Destroyed 2 | . . . . 2 Turret 1 | . . . . 1 Assembled 1 | . . . . 1 Best Kill Streak 1 | . . . . 1 Combat Bots Only 1 | . . . . 1 Max Kills in Single Turn 1 | . . . . 1 Gunslinging . | . . . . . Exploded . | . . . . . Melee . | . . . . . Uniques/NPCs Destroyed 1 | . . . . 1 EX-DEC (-9/Exiles) Combat | -11 -10 -9 -9 -9 -------- Run | Scr Mat Mat Min Exi Damage Taken 1134 | . 93 110 . 931 Core 208 | . 8 33 . 167 Absorbed by Shields . | . . . . . Core Remaining (%) 98 | 100 96 . . . Volleys Fired 9 | . . . . 9 Largest 3 | . . . . 3 Hottest 100 | . . . . 100 Shots Fired 22 | . . . . 22 Gun 22 | . . . . 22 Cannon . | . . . . . Launcher . | . . . . . Special . | . . . . . Kinetic 9 | . . . . 9 Thermal 13 | . . . . 13 Explosive . | . . . . . Electromagnetic . | . . . . . Robot Hit Streak 7 | . . . . 7 Robot Miss Streak 1 | . . . . 1 Penetration Max . | . . . . . Secondary Targets 1 | . . . . 1 Max Gunslinging Chain 1 | . . . . 1 Shots Hit Robots 16 | . . . . 16 Core Hits 5 | . . . . 5 Critical Kills . | . . . . . Critical Parts Destroyed . | . . . . . Critical Strikes . | . . . . . Melee Attacks . | . . . . . Impact . | . . . . . Slashing . | . . . . . Piercing . | . . . . . Sneak Attacks . | . . . . . Combat Hostiles . | . . . . . Follow-up Attacks . | . . . . . Damage Inflicted 183 | . 9 3 . 171 Guns 171 | . . . . 171 Cannons . | . . . . . Explosions . | . . . . . Melee . | . . . . . Ramming 12 | . 9 3 . . Kinetic 75 | . . . . 75 Thermal 96 | . . . . 96 Explosive . | . . . . . Electromagnetic . | . . . . . Impact . | . . . . . Slashing . | . . . . . Piercing . | . . . . . Highest Corruption 2 | . . . . 2 Average Corruption 2 | . . . . 2 Corruption Purged . | . . . . . Overload Shots . | . . . . . Overflow Damage . | . . . . . Projectiles . | . . . . . Explosions . | . . . . . Melee . | . . . . . Knockbacks . | . . . . . Impact . | . . . . . Kinetic . | . . . . . Secondary . | . . . . . Self-Inflicted Damage . | . . . . . Shots . | . . . . . Rammed . | . . . . . Targets Rammed 2 | . 1 1 . . Kicked 2 | . 1 1 . . Crushed . | . . . . . Highest Temperature 136 | . . . . 136 Average Temperature 53 | . . . . 53 Received Heat Transfer 126 | . 6 . . 120 Siege Activations . | . . . . . Robots Corrupted . | . . . . . Combat Hostiles . | . . . . . Parts Fried . | . . . . . Impact Corruptions . | . . . . . Robots Melted 1 | . . . . 1 Combat Hostiles . | . . . . . Parts Melted . | . . . . . Heat Transferred 225 | . . . . 225 Parts Sabotaged . | . . . . . Parts Stolen . | . . . . . Parts Stripped . | . . . . . Power Chain Reactions . | . . . . . Missiles Intercepted . | . . . . . Alert | -11 -10 -9 -9 -9 ------- Run | Scr Mat Mat Min Exi Peak Influence 71 | . 52 71 23 . Initial 23 | . . 21 23 . Average 24 | . 16 39 23 . Maximum Alert Level . | . . . . . Low Security (%) 100 | . 100 100 100 . Level 1 . | . . . . . Level 2 . | . . . . . Level 3 . | . . . . . Level 4 . | . . . . . Level 5 . | . . . . . High Security . | . . . . . Max Security . | . . . . . Squads Dispatched . | . . . . . Investigation . | . . . . . Extermination . | . . . . . Reinforcement . | . . . . . Assault . | . . . . . Garrison . | . . . . . Intercept . | . . . . . Construction Impeded . | . . . . . Haulers Reinforced . | . . . . . Cargo Convoy Interrupts . | . . . . . Stealth | -11 -10 -9 -9 -9 --------- Run | Scr Mat Mat Min Exi Distress Signals 2 | . . 2 . . Communications Jammed . | . . . . . Distress Signals . | . . . . . Times Spotted 26 | . 6 7 . 13 Peak Tracking Total 11 | . 6 6 . 11 Tactical Retreats 2 | . 1 . . 1 Traps | -11 -10 -9 -9 -9 ------- Run | Scr Mat Mat Min Exi Traps Triggered . | . . . . . Indirectly . | . . . . . Trap Hack Attempts . | . . . . . Triggered . | . . . . . Disarmed . | . . . . . Reprogrammed . | . . . . . Reused . | . . . . . Traps Extracted . | . . . . . Installed . | . . . . . Triggered . | . . . . . Exploded 1 | . . . . 1 Machines | -11 -10 -9 -9 -9 ---------- Run | Scr Mat Mat Min Exi Machines Disabled 2 | . . . . 2 Max in Single Turn . | . . . . . Machines Sabotaged . | . . . . . Garrisons Compromised . | . . . . . Overloaded Fab Kills . | . . . . . Fab Network Shutdowns . | . . . . . Hacking | -11 -10 -9 -9 -9 --------- Run | Scr Mat Mat Min Exi Machines Accessed 5 | . 1 3 . 1 Terminals 4 | . 1 3 . . Fabricators . | . . . . . Repair Stations . | . . . . . Recycling Units . | . . . . . Scanalyzers . | . . . . . Garrison Access . | . . . . . Total Hacks 11 | . 2 8 . 1 Successful 6 | . 1 4 . 1 Failed 5 | . 1 4 . . Catastrophic 2 | . 1 1 . . Database Lockouts . | . . . . . Manual 8 | . 1 6 . 1 Terminals 10 | . 2 8 . . Fabricators . | . . . . . Repair Stations . | . . . . . Recycling Units . | . . . . . Scanalyzers . | . . . . . Garrison Access . | . . . . . Terminal Hacks 5 | . 1 3 . 1 Branch Access Points 1 | . . 1 . . Emergency Access Points 1 | . . 1 . . Registered Components 2 | . 1 1 . . EX-Prototype ID Bank 1 | . . . . 1 Fabricator Hacks . | . . . . . Repair Station Hacks . | . . . . . Recycling Unit Hacks . | . . . . . Scanalyzer . | . . . . . Garrison Access Hacks . | . . . . . Unauthorized Hacks 1 | . . 1 . . Terminals 1 | . . 1 . . Assimilate 1 | . . 1 . . Fabricators . | . . . . . Repair Stations . | . . . . . Recycling Units . | . . . . . Scanalyzers . | . . . . . Garrison Access . | . . . . . Data Cores Recovered . | . . . . . Used . | . . . . . Hacking Detections 4 | . 1 3 . . Full Trace Events . | . . . . . Feedback Events . | . . . . . Feedback Blocked . | . . . . . Robot Schematics Acquired . | . . . . . Robots Built . | . . . . . Matter . | . . . . . Time . | . . . . . Total Robot Build Rating . | . . . . . Part Schematics Acquired . | . . . . . Parts Built . | . . . . . Matter . | . . . . . Time . | . . . . . Total Part Build Rating . | . . . . . Parts Repaired . | . . . . . Time . | . . . . . Parts Recycled . | . . . . . Recycled Matter . | . . . . . Retrieved Matter . | . . . . . Retrieved Components . | . . . . . Parts Scanalyzed . | . . . . . Part Schematics Acquired . | . . . . . Parts Damaged . | . . . . . Bothacking | -11 -10 -9 -9 -9 ------------ Run | Scr Mat Mat Min Exi Used RIF Installer . | . . . . . Robots Hacked . | . . . . . Non-combat . | . . . . . Combat . | . . . . . Robot Hacks Applied . | . . . . . Relay Couplers Released . | . . . . . Robots Rewired . | . . . . . Allies Hacked . | . . . . . Hacks Repelled . | . . . . . Allies | -11 -10 -9 -9 -9 -------- Run | Scr Mat Mat Min Exi Total Allies 5 | . . 1 4 . Largest Group 4 | . . 1 4 4 Highest-Rated Group 71 | . . 10 71 71 Highest-Rated Ally 31 | . . 10 31 31 Total Orders . | . . . . . Ally Attacks 28 | . . . . 28 Total Damage 777 | . . . . 777 Kills 5 | . . . . 5 Allies Corrupted . | . . . . . Allies Melted . | . . . . . Turrets Deployed 1 | . . . . 1 Intel | -11 -10 -9 -9 -9 ------- Run | Scr Mat Mat Min Exi Robot Analysis Total . | . . . . . Derelict Logs Recovered 1 | . . . 1 . Drone Launches . | . . . . . Drone Recoveries . | . . . . . Exploration | -11 -10 -9 -9 -9 ------------- Run | Scr Mat Mat Min Exi Turns Passed 1063 | . 124 115 275 549 Spaces Moved 757 | 1 103 95 223 335 Core . | . . . . . Treads 226 | . . . . 226 Legs 531 | 1 103 95 223 109 Wheels . | . . . . . Hover . | . . . . . Flight . | . . . . . Fastest Speed 120 | 120 120 120 120 120 Average Speed 131 | 120 120 120 120 146 Slowest Speed 160 | 120 120 120 120 160 Overloaded Moves . | . . . . . Propulsion Burnouts . | . . . . . Robots Hopped . | . . . . . Cave-ins Triggered . | . . . . . Exploration Rate (%) 32 | 2 30 23 45 64 Regions Visited 4 Branch Regions 2 Pre-discovered Areas 1 | . . . 1 . Known Exits Taken 1 | . . 1 . . Unknown Exits Taken 3 | 1 1 . 1 . Scrap Searched 2 | . . . 2 . Spaces Dug . | . . . . . Terrain Destroyed . | . . . . . Melee . | . . . . . Projectile . | . . . . . AOE . | . . . . . Terrain Rammed . | . . . . . Walls Destroyed . | . . . . . Machines Disabled . | . . . . . Actions | -11 -10 -9 -9 -9 --------- Run | Scr Mat Mat Min Exi Total 805 | . 103 96 230 376 Wait 16 | . . . 6 10 Move 753 | . 102 94 222 335 Hop . | . . . . . Pick Up 8 | . . 1 1 6 Fast Attach 3 | . . . 1 2 Attach 5 | . . . . 5 Detach . | . . . . . Swap . | . . . . . Drop 9 | . . . . 9 Fire 9 | . . . . 9 Melee . | . . . . . Ram . | . . . . . Kick 2 | . 1 1 . . Crush . | . . . . . Escape Stasis . | . . . . . Rewire . | . . . . . Trap . | . . . . . Miscellaneous . | . . . . . Route ------- -11/Scrapyard -10/Materials -9/Materials (discovered 3 exits: *Min / Sto x2) -9/Mines -9/Exiles History --------- Turn | Location | Event 1 | -11/Scrapyard | Discovered new exit (range 0) 1 | -11/Scrapyard | Entered Materials 59 | -10/Materials | Discovered new exit (range 15) 125 | -10/Materials | Entered another Materials area 125 | -9/Materials | Evolved 2 slots: Weapon x2 164 | -9/Materials | Identified exit to Mines 164 | -9/Materials | Identified exit to Storage 240 | -9/Materials | Entered Mines 249 | -9/Mines | Learned location of Zion (-6) 295 | -9/Mines | Received a Mining Laser from a helpful Derelict 305 | -9/Mines | Build established: Mutant 397 | -9/Mines | Assisted by bots powering up and referring to "LRC-V3" 503 | -9/Mines | Deemed a non-threat by the Exiles lab entrance 503 | -9/Mines | Discovered new exit (range 5) 515 | -9/Mines | Entered Exiles 515 | -9/Exiles | Accompanied by 4 allies 558 | -9/Exiles | Met 8R-AWN 577 | -9/Exiles | Met EX-HEX 625 | -9/Exiles | Met EX-DEC 728 | -9/Exiles | Met EX-BIN 751 | -9/Exiles | Aligned with FarCom system 752 | -9/Exiles | Given EX-Vault access code 789 | -9/Exiles | Opened EX-Vault 802 | -9/Exiles | Found Lightpack 2.0 806 | -9/Exiles | Found Modified TNC 825 | -9/Exiles | Found Cloak of Protection 861 | -9/Exiles | Warned to stay clear of 0b10 Research branches 986 | -9/Exiles | Build established: Tank 1012 | -9/Exiles | Attacked by the Exiles 1018 | -9/Exiles | Allies destroyed EX-DEC 1038 | -9/Exiles | DAS Turret deployed 1064 | -9/Exiles | Self-destructed Last Messages --------------- 01053_ Assault Rifle destroyed. 01053_ HV Slug penetrates Machine. 01053_ Machine disabled. 01053_ HV Slug penetrates Machine. 01053_ 8R-AWN knocked back. 01056_ Ion Engine destroyed. 01056_ HV Slug penetrates DAS Turret. 01056_ HV Slug penetrates Machine. 01056_ Acquired 14 matter. 01057_ Lgt. Treads destroyed. 01061_ HV Slug penetrates Machine. 01061_ Machine disabled. 01061_ HV Slug penetrates Machine. 01061_ Acquired Corrupted Aluminum Leg. 01061_ Integrated Corrupted Aluminum Leg (+2). 01063_ Acquired 9 matter. 01063_ HV Slug penetrates DAS Turret. 01063_ DAS Turret suffers critical hit (Destroy). 01063_ DAS Turret destroyed. 01063_ HV Slug penetrates Machine. Map ----- +----------------------------------------------------+ | #????## ""#????????????##???????????#" | | ##??#" ""????????????? """????????#" | | ##" "??????????????" """#???????## | | #"" #??????????????" ?????????# | | #?????????????"" ?????????#" | | # ##????????????"" "#????????#" | | ?## "#???????????? ""?????????#" "" | | ?#" ! ###???????????" "?????????##" ### | | """ !== ##??????????# #????????##"" #?? | | "###"" ######???### ###?######"" #?? | | ???##" """#####X# #"###""""""" ##? | | ?????#" """""" " "" ## | | ""???????#"# "" """ " # | | #????????#### " " | | ????????????### | | ??????????????### | | ????????????????## | | ?????????????????## | | ??????????????????##" | | ???????????????????#""" """""" | | ??????????????????##" ######""" | | ??????????????????#"" ""##????#####"" | | ?????????????????##"" % """##?????????##" | | ?????????????????#""" % % """##???????????#" | | ?????????????????#""" [ ""#?????????????" | | ?????????????????#"" % @! ####??##???????" | | ?????????????????#"" * ;# % ####???? | | ?????????????????#""% "???? | | ?????????????????##"" a %?? | | ??????????????????#""" % % % ?? | | ??????????????????## a % ??? | | ???????????????????#" % " %????? | | ???????????????????#""""! ! ""#???????? | | ???????????????????#" !%!! ""##????????? | | ???????????????????# !!* """##?????????? | | ???????????????????#"" ! """#??????????? | | ???????????????????## ""##??????????? | | ????????????????????# """##???????????? | | ????????????????????#"""" ##????????????? | | ????????????????????###"""" ##?????????????? | | ??????????????????????### #??????????????? | | ????????????????????????##### ##??????????????? | | ?????????????????????????????# #???????????????? | | ?????????????????????????????? #???????????????? | | ?????????????????????????????? #???????????????? | | ??????????????????????????????? #???????????????? | | ??????????????????????????????? #???????????????? | | ???????????????????????????????? #???????????????? | | ???????????????????????????????? #???????????????? | | ?????????????????????????????????#???????????????? | +----------------------------------------------------+ Best States ------------- Heat Dissipation 38 Energy Generation 10 Energy Capacity 250 Matter Stores 300 Matter Capacity 300 Sight Range 16 Terrain Scan Density 10 Armor Coverage 225 Evasion (%) 55 Recoil Reduction 2 Item Schematics ----------------- None Robot Schematics ------------------ None Fabricated ------------ Nothing Alien Tech Used ----------------- None Achievements -------------- None Challenges ------------ None Game ------ Seed TransdimensionalFusionKit Manual? 0 Play Time 00:10:44 Cumulative 135.6 hours Start 2021.07.03 @ 23:20:01 End 2021.07.03 @ 23:32:25 Sessions 1 Manual Loads 0 Difficulty Rogue Special Mode None Game No. 206 Rogue 206 Adventurer 0 Explorer 0 Win Type - Total 6 Types 5/0/0/1/0/0/0/0/0 Lore% 51 Gallery% 74 Achievement% 59 Wizard Run 0 Options --------- ASCII 0 Keyboard 0 Movement Mouse Keybinds 0 Fullscreen 1 Font 18/Terminus Map View 76x50 Tactical HUD 1 Map Filters NONE Filters NONE Steam 1 RUN: 25c371b2-6c9e-4917-9b97-40f08e7d956a